fUSD/lending_fUSD_20250814
["ID","MTS","AMOUNT","RATE_DAILY","PERIOD"]
[379102781,1755141047949,-20154.60320767,0.0003347,2]
[379102782,1755141047959,-152.0,0.00033664,6]
[379102783,1755141047969,-6742.41222146,0.00033811,30]
[379102784,1755141047979,-152.0,0.00033944,7]
[379102785,1755141047988,-204.0,0.00034,90]
[379102786,1755141047997,-447.3913417,0.00034203,2]
[379102787,1755141048008,-152.0,0.00034225,8]
[379102788,1755141048018,-150.0,0.00034246,2]
[379102789,1755141048027,-150.0,0.00034246,2]
[379102790,1755141048037,-165.37,0.00034247,120]
[379102791,1755141048048,-155.0,0.0003439,2]
[379102792,1755141048057,-1241.39842139,0.00034452,2]
[379102793,1755141048067,-152.0,0.00034506,9]
[379102794,1755141048076,-4031.56297656,0.00034545,2]
[379102795,1755141048085,-4031.56297655,0.00034545,2]
[379102796,1755141048095,-4031.56297655,0.00034545,2]
[379102797,1755141048105,-152.0,0.00034786,10]
[379102798,1755141048114,-762.0,0.00034853,5]
[379102799,1755141048123,-893.0,0.00034892,2]
[379102800,1755141048133,-1172.0,0.00034892,2]
[379102801,1755141048143,-10695.54385266,0.00034999,2]
[379102802,1755141048152,-16331.19076486,0.00035,3]
[379102803,1755141048162,-10639.80606272,0.00035,2]
[379102804,1755141048171,-329.622478,0.00035,7]
[379102805,1755141048180,-329.622478,0.00035,7]
[379102806,1755141048190,-755.606901,0.00035,7]
[379102807,1755141048199,-755.606901,0.00035,7]
[379102808,1755141048210,-151.0,0.00035,7]
[379102809,1755141048219,-1062.471198,0.00035,7]
[379102810,1755141048230,-1062.471198,0.00035,7]
[379102811,1755141048240,-384.5384391,0.00035,120]
[379102812,1755141048249,-6086.0,0.0003504,2]
[379102813,1755141048260,-4149.0,0.0003504,2]
[379102814,1755141048269,-21478.0,0.0003504,2]
[379102815,1755141048278,-152.0,0.00035067,11]
[379102816,1755141048288,-152.0,0.00035348,12]
[379102817,1755141048298,-151.0,0.0003557,2]
[379102818,1755141048307,-393.98620449,0.00035572,2]
[379102819,1755141048317,-150.0,0.00035616,2]
[379102820,1755141048327,-150.0,0.00035616,2]
[379102821,1755141048336,-400.0,0.00035616,5]
[379102822,1755141048345,-152.0,0.00035628,13]
[379102823,1755141048355,-566.37,0.00035664,60]
[379102824,1755141048364,-4000.0,0.00035846,4]
[379102825,1755141048374,-152.0,0.00035909,14]
[379102826,1755141048383,-34159.29949368,0.00036,2]
[379102827,1755141048392,-1241.39842139,0.00036004,2]
[379102828,1755141048401,-469.45944172,0.00036164,5]
[379102829,1755141048412,-152.0,0.0003619,15]
[379102830,1755141048421,-300.0,0.00036397,10]
[379102831,1755141048431,-150.0,0.00036398,2]
[379102832,1755141048440,-150.0,0.00036398,2]
[379102833,1755141048449,-150.0,0.00036398,2]
[379102834,1755141048458,-150.0,0.00036398,2]
[379102835,1755141048467,-150.0,0.00036398,2]
[379102836,1755141048477,-150.0,0.00036398,2]
[379102837,1755141048487,-150.0,0.00036398,2]
[379102838,1755141048496,-810.0,0.00036398,2]
[379102839,1755141048505,-3369.0,0.00036398,2]
[379102840,1755141048516,-2028.0,0.00036398,2]
[379102841,1755141048526,-1655.0,0.00036398,2]
[379102842,1755141048536,-598.0,0.00036398,2]
[379102843,1755141048545,-1296.0,0.00036398,2]
[379102844,1755141048554,-565.0,0.00036398,2]
[379102845,1755141048564,-982.0,0.00036398,2]
[379102846,1755141048573,-55.96072947,0.00036468,120]
[379102847,1755141048583,-152.0,0.0003647,16]
[379102848,1755141048592,-2500.0,0.0003662,5]
[379102849,1755141048601,-2500.0,0.0003662,5]
[379102850,1755141048610,-152.0,0.00036751,17]
[379102851,1755141048620,-150.0,0.0003676,2]
[379102852,1755141048630,-10532.59728076,0.00036825,120]
[379102853,1755141048640,-3502.77968605,0.0003686,2]
[379102854,1755141048649,-162.88,0.00036883,2]
[379102855,1755141048660,-300.0,0.00036909,10]
[379102856,1755141048669,-13827.05711455,0.0003691,2]
[379102857,1755141048679,-150.0,0.00036986,2]
[379102858,1755141048688,-150.0,0.00036986,2]
[379102859,1755141048697,-152.0,0.00037032,18]
[379102860,1755141048707,-370.83767515,0.00037182,10]
[379102861,1755141048717,-5745.99138665,0.000372,120]
[379102862,1755141048726,-5745.99138661,0.000372,120]
[379102863,1755141048736,-5745.99138661,0.000372,120]
[379102864,1755141048745,-5745.99138661,0.000372,120]
[379102865,1755141048755,-152.0,0.00037312,19]
[379102866,1755141048764,-640.99876195,0.0003739,14]
[379102867,1755141048773,-1241.39842139,0.00037555,2]
[379102868,1755141048783,-4245.69517055,0.0003759,2]
[379102869,1755141048792,-151.0,0.0003759,7]
[379102870,1755141048802,-967.080589,0.0003759,7]
[379102871,1755141048811,-967.080589,0.0003759,7]
[379102872,1755141048821,-152.0,0.00037593,20]
[379102873,1755141048831,-165.37,0.00037671,120]
[379102874,1755141048840,-153.0,0.000377,120]
[379102875,1755141048851,-152.0,0.00037874,21]
[379102876,1755141048860,-198.02515859,0.0003788,2]
[379102877,1755141048870,-893.0,0.00037892,2]
[379102878,1755141048883,-1172.0,0.00037892,2]
[379102879,1755141048893,-150.0,0.0003794,2]
[379102880,1755141048903,-9988.19213682,0.00038,2]
[379102881,1755141048913,-156.0,0.00038,120]
[379102882,1755141048923,-1063.23571637,0.00038,120]
[379102883,1755141048932,-160.0,0.00038,120]
[379102884,1755141048941,-6086.0,0.0003804,2]
[379102885,1755141048951,-4149.0,0.0003804,2]
[379102886,1755141048960,-14798.654,0.0003804,2]
[379102887,1755141048970,-152.0,0.00038154,22]
[379102888,1755141048979,-217.31,0.00038216,60]
[379102889,1755141048988,-217.31,0.00038316,60]
[379102890,1755141048997,-350.0,0.00038322,120]
[379102891,1755141049007,-154.76724123,0.00038322,120]
[379102892,1755141049017,-566.37,0.00038334,60]
[379102893,1755141049027,-150.0,0.00038356,2]
[379102894,1755141049036,-150.0,0.00038356,2]
[379102895,1755141049046,-400.0,0.00038356,120]
[379102896,1755141049056,-151.0,0.00038356,30]
[379102897,1755141049065,-151.0,0.00038356,30]
[379102898,1755141049075,-2000.0,0.000384,2]
[379102899,1755141049084,-217.31,0.00038422,120]
[379102900,1755141049094,-152.0,0.00038435,23]
[379102901,1755141049104,-153.26,0.00038454,120]
[379102902,1755141049113,-153.33,0.00038454,120]
[379102903,1755141049122,-217.31,0.00038522,120]
[379102904,1755141049132,-153.26,0.00038554,120]
[379102905,1755141049141,-153.33,0.00038554,120]
[379102906,1755141049150,-153.26,0.00038654,120]
[379102907,1755141049160,-153.33,0.00038654,120]
[379102908,1755141049169,-152.0,0.00038716,24]
[379102909,1755141049178,-153.26,0.00038754,120]
[379102910,1755141049188,-153.33,0.00038754,120]
[379102911,1755141049198,-153.26,0.00038854,120]
[379102912,1755141049208,-153.33,0.00038854,120]
[379102913,1755141049218,-469.07645672,0.000389,120]
[379102914,1755141049227,-153.26,0.00038954,120]
[379102915,1755141049237,-153.33,0.00038954,120]
[379102916,1755141049246,-152.0,0.00038996,25]
[379102917,1755141049256,-7292.13417459,0.00039,10]
[379102918,1755141049265,-1162.34068657,0.00039,120]
[379102919,1755141049274,-350.0,0.00039007,120]
[379102920,1755141049283,-153.26,0.00039054,120]
[379102921,1755141049293,-153.26,0.00039054,120]
[379102922,1755141049304,-153.33,0.00039054,120]
[379102923,1755141049314,-1241.39842139,0.00039107,2]
[379102924,1755141049323,-150.0,0.0003912,2]
[379102925,1755141049333,-153.27668917,0.00039154,120]
[379102926,1755141049343,-153.33,0.00039154,120]
[379102927,1755141049352,-153.33,0.00039254,120]
[379102928,1755141049361,-152.0,0.00039277,26]
[379102929,1755141049371,-153.33,0.00039354,120]
[379102930,1755141049381,-300.0,0.00039397,10]
[379102931,1755141049391,-150.0,0.00039398,2]
[379102932,1755141049400,-150.0,0.00039398,2]
[379102933,1755141049409,-150.0,0.00039398,2]
[379102934,1755141049418,-810.0,0.00039398,2]
[379102935,1755141049427,-3369.0,0.00039398,2]
[379102936,1755141049436,-2028.0,0.00039398,2]
[379102937,1755141049445,-1655.0,0.00039398,2]
[379102938,1755141049455,-598.0,0.00039398,2]
[379102939,1755141049464,-1296.0,0.00039398,2]
[379102940,1755141049473,-565.0,0.00039398,2]
[379102941,1755141049482,-982.0,0.00039398,2]
[379102942,1755141049491,-153.33,0.00039454,120]
[379102943,1755141049501,-211.81431267,0.00039542,2]
[379102944,1755141049510,-458.02579908,0.00039542,2]
[379102945,1755141049519,-300.0,0.00039543,10]
[379102946,1755141049528,-153.33,0.00039554,120]
[379102947,1755141049538,-152.0,0.00039558,27]
[379102948,1755141049547,-215.28620793,0.000396,120]
[379102949,1755141049557,-300.0,0.00039622,10]
[379102950,1755141049566,-301.51,0.00039623,2]
[379102951,1755141049577,-3322.89,0.00039623,2]
[379102952,1755141049586,-11241.29,0.00039623,2]
[379102953,1755141049596,-532.82,0.00039623,120]
[379102954,1755141049606,-35136.86,0.00039623,2]
[379102955,1755141049616,-1024.42,0.00039623,2]
[379102956,1755141049626,-1000.0,0.00039623,120]
[379102957,1755141049636,-782.42,0.00039623,2]
[379102958,1755141049645,-2936.99,0.00039623,2]
[379102959,1755141049654,-512.13,0.00039623,2]
[379102960,1755141049663,-500.0,0.00039623,2]
[379102961,1755141049673,-79073.26,0.00039623,2]
[379102962,1755141049683,-176.38,0.00039623,3]
[379102963,1755141049692,-170.0,0.00039623,7]
[379102964,1755141049929,-1000.0,0.00039623,2]
[379102965,1755141049938,-1500.0,0.00039623,120]
[379102966,1755141049949,-400.81,0.00039623,120]
[379102967,1755141049959,-151.0,0.00039623,30]
[379102968,1755141049968,-196.903405,0.00039623,30]
[379102969,1755141049978,-151.0,0.00039623,30]
[379102970,1755141049987,-196.903405,0.00039623,30]
[379102971,1755141049997,-151.0,0.00039623,30]
[379102972,1755141050007,-151.0,0.00039623,30]
[379102973,1755141050016,-197.312938,0.00039623,30]
[379102974,1755141050026,-151.0,0.00039623,30]
[379102975,1755141050035,-197.312938,0.00039623,30]
[379102976,1755141050044,-151.0,0.00039623,30]
[379102977,1755141050054,-151.0,0.00039623,30]
[379102978,1755141050063,-276.357719,0.00039623,30]
[379102979,1755141050073,-166.30365,0.00039623,30]
[379102980,1755141050083,-276.357719,0.00039623,30]
[379102981,1755141050093,-166.30365,0.00039623,30]
[379102982,1755141050104,-211.37997,0.00039623,30]
[379102983,1755141050115,-211.37997,0.00039623,30]
[379102984,1755141050124,-299.552406,0.00039623,30]
[379102985,1755141050134,-299.552406,0.00039623,30]
[379102986,1755141050143,-151.0,0.00039623,30]
[379102987,1755141050154,-196.894873,0.00039623,30]
[379102988,1755141050163,-461.776412,0.00039623,30]
[379102989,1755141050173,-217.236286,0.00039623,30]
[379102990,1755141050183,-461.776412,0.00039623,30]
[379102991,1755141050193,-151.0,0.00039623,30]
[379102992,1755141050204,-263.836665,0.00039623,30]
[379102993,1755141050213,-263.836665,0.00039623,30]
[379102994,1755141050223,-214.397328,0.00039623,30]
[379102995,1755141050232,-214.397328,0.00039623,30]
[379102996,1755141050242,-205.065078,0.00039623,30]
[379102997,1755141050251,-205.065078,0.00039623,30]
[379102998,1755141050261,-151.0,0.00039623,30]
[379102999,1755141050271,-151.0,0.00039623,30]
[379103000,1755141050282,-264.537252,0.00039623,30]
[379103001,1755141050293,-264.537252,0.00039623,30]
[379103002,1755141050303,-198.432317,0.00039623,30]
[379103003,1755141050314,-198.432317,0.00039623,30]
[379103004,1755141050324,-151.0,0.00039623,30]
[379103005,1755141050334,-219.744119,0.00039623,30]
[379103006,1755141050344,-219.744119,0.00039623,30]
[379103007,1755141050353,-352.975272,0.00039623,30]
[379103008,1755141050363,-352.975272,0.00039623,30]
[379103009,1755141050373,-623.632297,0.00039623,30]
[379103010,1755141050383,-623.632297,0.00039623,30]
[379103011,1755141050392,-504.520265,0.00039623,30]
[379103012,1755141050402,-255.171492,0.00039623,30]
[379103013,1755141050411,-504.520265,0.00039623,30]
[379103014,1755141050420,-255.171492,0.00039623,30]
[379103015,1755141050429,-151.0,0.00039623,30]
[379103016,1755141050439,-167.776839,0.00039623,30]
[379103017,1755141050449,-167.776839,0.00039623,30]
[379103018,1755141050458,-168.782615,0.00039623,30]
[379103019,1755141050467,-171.237155,0.00039623,30]
[379103020,1755141050477,-171.237155,0.00039623,30]
[379103021,1755141050487,-151.0,0.00039623,30]
[379103022,1755141050497,-1396.880114,0.00039623,30]
[379103023,1755141050506,-1396.880114,0.00039623,30]
[379103024,1755141050516,-437.051332,0.00039623,30]
[379103025,1755141050526,-437.051332,0.00039623,30]
[379103026,1755141050535,-2013.703179,0.00039623,30]
[379103027,1755141050544,-2013.703179,0.00039623,30]
[379103028,1755141050553,-229.697885,0.00039623,30]
[379103029,1755141050562,-229.697885,0.00039623,30]
[379103030,1755141050572,-301.51,0.00039644,2]
[379103031,1755141050583,-271.5,0.0003965,120]
[379103032,1755141050592,-203.63,0.00039654,2]
[379103033,1755141050603,-153.33,0.00039654,120]
[379103034,1755141050612,-301.51,0.00039665,2]
[379103035,1755141050621,-301.51,0.00039685,2]
[379103036,1755141050630,-350.0,0.00039692,120]
[379103037,1755141050641,-151.0,0.000397,30]
[379103038,1755141050651,-260.798654,0.000397,30]
[379103039,1755141050660,-260.798654,0.000397,30]
[379103040,1755141050669,-522.420924,0.000397,30]
[379103041,1755141050678,-522.420924,0.000397,30]
[379103042,1755141050689,-151.0,0.000397,30]
[379103043,1755141050698,-151.324548,0.000397,30]
[379103044,1755141050707,-301.51,0.00039706,2]
[379103045,1755141050716,-150.0,0.00039726,2]
[379103046,1755141050726,-150.0,0.00039726,2]
[379103047,1755141050737,-400.0,0.00039726,120]
[379103048,1755141050748,-164.747116,0.00039726,15]
[379103049,1755141050759,-301.51,0.00039727,2]
[379103050,1755141050770,-762.0,0.00039737,7]
[379103051,1755141050780,-301.51,0.00039748,2]
[379103052,1755141050792,-153.33,0.00039754,120]
[379103053,1755141050802,-301.51,0.00039769,2]
[379103054,1755141050812,-301.51,0.0003979,2]
[379103055,1755141050821,-301.51,0.0003981,2]
[379103056,1755141050832,-301.51,0.00039831,2]
[379103057,1755141050842,-152.0,0.00039839,28]
[379103058,1755141050852,-301.51,0.00039852,2]
[379103059,1755141050862,-153.33,0.00039854,120]
[379103060,1755141050871,-301.51,0.00039873,2]
[379103061,1755141050883,-25241.99261356,0.0003988,120]
[379103062,1755141050892,-301.51,0.00039894,2]
[379103063,1755141050901,-301.51,0.00039915,2]
[379103064,1755141050910,-301.51,0.00039936,2]
[379103065,1755141050920,-1501.76,0.0003994,2]
[379103066,1755141050929,-153.33,0.00039954,120]
[379103067,1755141050942,-301.51,0.00039956,2]
[379103068,1755141050951,-197.0,0.0003997,120]
[379103069,1755141050960,-301.51,0.00039977,2]
[379103070,1755141050970,-197.0,0.0003998,120]
[379103071,1755141050979,-197.0,0.0003998,120]
[379103072,1755141050988,-197.0,0.0003999,120]
[379103073,1755141050998,-197.0,0.0003999,120]
[379103074,1755141051008,-301.51,0.00039998,2]
[379103075,1755141051017,-574299.49965467,0.00039999,30]
[379103076,1755141053021,-37054.242335,0.00039999,30]
[379103077,1755141053184,-7690.18757606,0.00039999,30]
[379103078,1755141053196,-1234.4,0.00039999,30]
[379103079,1755141054245,-150.0,0.0002476,2]
[379103080,1755141054255,-150.0,0.00024801,2]
[379103081,1755141054264,-150.0,0.00024822,2]
[379103082,1755141054273,-150.0,0.00024842,2]
[379103083,1755141054283,-150.0,0.0002492,2]
[379103084,1755141054292,-150.0,0.0002495,2]
[379103085,1755141054302,-283.73368954,0.00026658,3]
[379103086,1755141054311,-718.892,0.0002904,2]
[379103087,1755141054320,-717.0,0.0003204,2]
[379103088,1755141054330,-334.34468357,0.00039999,30]
[379103089,1755141054407,-150.0,0.00024692,2]
[379103090,1755141054416,-150.0,0.00024698,2]
[379103091,1755141054425,-150.0,0.00024753,2]
[379103092,1755141054434,-150.0,0.0002477,2]
[379103093,1755141054443,-150.0,0.00024795,2]
[379103094,1755141054453,-150.0,0.00024808,2]
[379103095,1755141054461,-150.0,0.00024875,2]
[379103096,1755141054471,-150.0,0.00024883,2]
[379103097,1755141054480,-150.0,0.00024927,2]
[379103098,1755141054491,-3882.22127963,0.00039999,30]
[379103099,1755141054502,-2183.35714489,0.00039999,30]
[379103100,1755141054517,-150.0,0.00024908,2]
[379103101,1755141054526,-14279.19308809,0.00039999,30]
[379103102,1755141054535,-157.978681,0.00039999,30]
[379103103,1755141054544,-236.444818,0.00039999,30]
[379103104,1755141054553,-151.0,0.00039999,30]
[379103105,1755141054562,-9715.10141291,0.0004,2]
[379103106,1755141055868,-150.0,0.0002469,2]
[379103107,1755141055880,-150.0,0.00024693,2]
[379103108,1755141055889,-150.0,0.00024697,2]
[379103109,1755141055899,-150.0,0.00024702,2]
[379103110,1755141055908,-150.0,0.00024713,2]
[379103111,1755141055917,-150.0,0.00024716,2]
[379103112,1755141055928,-150.0,0.00024717,2]
[379103113,1755141055938,-150.0,0.00024717,2]
[379103114,1755141055947,-150.0,0.00024726,2]
[379103115,1755141055958,-150.0,0.00024729,2]
[379103116,1755141055968,-150.0,0.00024737,2]
[379103117,1755141055978,-150.0,0.00024741,2]
[379103118,1755141055987,-150.0,0.00024747,2]
[379103119,1755141055997,-150.0,0.00024749,2]
[379103120,1755141056007,-150.0,0.0002475,2]
[379103121,1755141056017,-150.0,0.0002475,2]
[379103122,1755141056026,-150.0,0.00024751,2]
[379103123,1755141056036,-150.0,0.00024752,2]
[379103124,1755141056046,-150.0,0.00024754,2]
[379103125,1755141056056,-150.0,0.00024755,2]
[379103126,1755141056066,-150.0,0.00024764,2]
[379103127,1755141056075,-150.0,0.00024765,2]
[379103128,1755141056085,-150.0,0.00024766,2]
[379103129,1755141056095,-150.0,0.00024767,2]
[379103130,1755141056104,-150.0,0.00024769,2]
[379103131,1755141056114,-150.0,0.00024774,2]
[379103132,1755141056125,-150.0,0.00024778,2]
[379103133,1755141056134,-150.0,0.00024784,2]
[379103134,1755141056143,-150.0,0.00024786,2]
[379103135,1755141056153,-150.0,0.00024791,2]
[379103136,1755141056163,-150.0,0.00024813,2]
[379103137,1755141056172,-150.0,0.00024815,2]
[379103138,1755141056181,-150.0,0.00024815,2]
[379103139,1755141056191,-150.0,0.00024819,2]
[379103140,1755141056200,-150.0,0.00024821,2]
[379103141,1755141056210,-150.0,0.00024823,2]
[379103142,1755141056221,-150.0,0.00024824,2]
[379103143,1755141056456,-150.0,0.0002483,2]
[379103144,1755141056484,-150.0,0.0002483,2]
[379103145,1755141056493,-150.0,0.00024831,2]
[379103146,1755141056502,-150.0,0.00024836,2]
[379103147,1755141056512,-150.0,0.00024838,2]
[379103148,1755141056522,-150.0,0.0002484,2]
[379103149,1755141056531,-150.0,0.00024849,2]
[379103150,1755141056540,-150.0,0.00024855,2]
[379103151,1755141056549,-150.0,0.00024857,2]
[379103152,1755141056558,-150.0,0.00024859,2]
[379103153,1755141056567,-150.0,0.00024867,2]
[379103154,1755141056577,-150.0,0.00024873,2]
[379103155,1755141056586,-150.0,0.00024877,2]
[379103156,1755141056595,-150.0,0.00024877,2]
[379103157,1755141056605,-150.0,0.00024877,2]
[379103158,1755141056615,-150.0,0.00024878,2]
[379103159,1755141056625,-150.0,0.00024879,2]
[379103160,1755141056635,-150.0,0.00024883,2]
[379103161,1755141056645,-150.0,0.00024883,2]
[379103162,1755141056654,-150.0,0.00024885,2]
[379103163,1755141056665,-150.0,0.00024888,2]
[379103164,1755141056676,-150.0,0.00024893,2]
[379103165,1755141056686,-150.0,0.000249,2]
[379103166,1755141056697,-150.0,0.00024905,2]
[379103167,1755141056706,-150.0,0.00024907,2]
[379103168,1755141056716,-150.0,0.00024909,2]
[379103169,1755141056725,-150.0,0.00024912,2]
[379103170,1755141056734,-150.0,0.00024913,2]
[379103171,1755141056744,-150.0,0.00024916,2]
[379103172,1755141056753,-150.0,0.00024918,2]
[379103173,1755141056763,-150.0,0.0002492,2]
[379103174,1755141056776,-150.0,0.00024927,2]
[379103175,1755141056796,-150.0,0.00024929,2]
[379103176,1755141056816,-150.0,0.0002493,2]
[379103177,1755141056836,-150.0,0.0002493,2]
[379103178,1755141056851,-150.0,0.00024931,2]
[379103179,1755141056862,-150.0,0.00024933,2]
[379103180,1755141056872,-150.0,0.00024934,2]
[379103181,1755141056886,-150.0,0.00024939,2]
[379103182,1755141056895,-150.0,0.00024944,2]
[379103183,1755141056905,-150.0,0.00024945,2]
[379103184,1755141056914,-150.0,0.00024945,2]
[379103185,1755141056923,-150.0,0.00024947,2]
[379103186,1755141056933,-150.0,0.00024951,2]
[379103187,1755141056942,-150.0,0.00024953,2]
[379103188,1755141056951,-150.0,0.00024955,2]
[379103189,1755141056961,-150.0,0.00024957,2]
[379103190,1755141056970,-717.0,0.0003504,2]
[379103191,1755141056980,-154.595197,0.00039999,30]
[379103192,1755141056989,-166.11981207,0.0004,2]
[379103193,1755141057024,-439.49537787,0.0004,2]
[379103194,1755141057040,-613.17491138,0.0004,2]
[379103195,1755141057055,-9688.38248331,0.0004,2]
[379103196,1755141057066,-243.10699935,0.0004,2]
[379103197,1755141057075,-2117.86183571,0.0004,2]
[379103198,1755141057086,-3708.0037437,0.0004,2]
[379103199,1755141057238,-35999.69005845,0.0004,2]
[379103200,1755141057250,-3000.0,0.0004,2]
[379103201,1755141058857,853.0,0.00025,30]
[379103202,1755141058945,1229.0,0.00025,30]
[379103203,1755141125732,9867.46863039,0.00025,30]
[379103205,1755141164265,732.0,0.00025,30]
[379103206,1755141170006,1013.0,0.00025,30]
[379103207,1755141170800,518.0,0.00025,30]
[379103208,1755141188773,-154.71108506,0.00018724,2]
[379103209,1755141190997,-13.28891494,0.00018724,2]
[379103210,1755141230971,833.60673092,0.00025,30]
[379103211,1755141232743,1334.0,0.00025,30]
[379103212,1755141233536,1667.0,0.00025,30]
[379103213,1755141234345,1802.0,0.00025,30]
[379103214,1755141284633,331.01024521,0.00025,30]
[379103215,1755141351077,150.0,0.0001941,120]
[379103216,1755141530058,150.0,0.00025,30]
[379103221,1755141602837,-168.0,0.00018668,2]
[379103222,1755141602859,-37.59888446,0.00018751,2]
[379103223,1755141606390,-212.40111554,0.00018751,2]
[379103224,1755141651789,150.0,0.00025,30]
[379103226,1755141745734,-284.67325584,0.00018834,2]
[379103227,1755141745768,-250.0,0.00018874,2]
[379103228,1755141745801,-284.67325583,0.00018911,2]
[379103229,1755141745836,-168.0,0.00018934,2]
[379103230,1755141745869,-500.0,0.00018978,2]
[379103231,1755141745902,-284.67325583,0.00018987,2]
[379103232,1755141745939,-168.0,0.00019006,2]
[379103233,1755141745971,-284.67325583,0.00019064,2]
[379103234,1755141746003,-1403.93,0.00019164,2]
[379103235,1755141746041,-812.59,0.00019193,2]
[379103236,1755141746075,-168.0,0.00019218,2]
[379103237,1755141746110,-168.0,0.0001925,2]
[379103238,1755141746144,-9274.81107495,0.00019311,2]
[379103239,1755141746178,-1200.0,0.00019321,2]
[379103240,1755141746213,-374.0,0.00019321,2]
[379103241,1755141746248,-150.0,0.00019322,2]
[379103242,1755141746284,-150.99,0.00019322,2]
[379103243,1755141746319,-9999.99,0.00019322,2]
[379103244,1755141746354,-237.71,0.00019332,2]
[379103245,1755141746386,-8517.77,0.00019342,2]
[379103246,1755141746422,-168.0,0.00019353,2]
[379103247,1755141746454,-1468.49,0.00019356,2]
[379103248,1755141746490,-9617.97908473,0.00019366,2]
[379103249,1755141746522,-150.0,0.0001941,2]
[379103250,1755141746560,-9973.84431086,0.00019421,2]
[379103251,1755141746593,-1329.32,0.00019447,2]
[379103252,1755141746627,-9886.84988828,0.00019476,2]
[379103253,1755141746659,-555.0,0.00019672,2]
[379103254,1755141746690,-151.0,0.00019672,2]
[379103255,1755141746726,-281.5055913,0.00019672,2]
[379103256,1755141746760,-160.0,0.00019672,2]
[379103257,1755141746793,-818.57934527,0.00019672,2]
[379103258,1755141746826,-1289.58892493,0.00019672,2]
[379103259,1755141746859,-151.0,0.00019672,2]
[379103260,1755141746893,-353.77156043,0.00019673,2]
[379103261,1755141746927,-516.38800282,0.00019673,2]
[379103262,1755141746961,-500.0,0.00019673,2]
[379103263,1755141746993,-500.0,0.00019673,2]
[379103264,1755141747025,-348.82562581,0.00019673,2]
[379103265,1755141747057,-501.31328798,0.00019673,2]
[379103266,1755141747089,-500.0,0.00019673,2]
[379103267,1755141747359,-500.0,0.00019673,2]
[379103268,1755141747394,-500.0,0.00019673,2]
[379103269,1755141747429,-500.0,0.00019673,2]
[379103270,1755141747465,-378.575054,0.00019673,2]
[379103271,1755141747500,-500.0,0.00019673,2]
[379103272,1755141747532,-500.0,0.00019673,2]
[379103273,1755141747564,-500.0,0.00019673,2]
[379103274,1755141747598,-500.0,0.00019673,2]
[379103275,1755141747632,-504.97932628,0.00019673,2]
[379103276,1755141747666,-502.72473506,0.00019673,2]
[379103277,1755141747699,-631.48396285,0.00019673,2]
[379103278,1755141747733,-489.3655445,0.00019673,2]
[379103279,1755141747765,-506.65233976,0.00019673,2]
[379103280,1755141747799,-274.01289598,0.00019683,2]
[379103281,1755141747832,-49540.68595722,0.00019684,2]
[379103282,1755141747860,-284.67325584,0.00019684,2]
[379103283,1755141747890,-250.0,0.00019684,2]
[379103284,1755141747912,-284.67325583,0.00019684,2]
[379103285,1755141747993,-168.0,0.00019684,2]
[379103286,1755141748048,-435.68171857,0.00019684,2]